bitfinex-derivatives/quotes_BTCF0:USTF0_20251209
["timestamp","ask_amount","ask_price","bid_price","bid_amount"]
[1765274509193,0.05765,90191.0,90190.0,0.0746951]
[1765274513703,0.05765,90191.0,90190.0,0.0364351]
[1765274514094,0.05765,90191.0,90190.0,0.00610878]
[1765274515989,0.05765,90191.0,90190.0,0.03623977]
[1765274524604,0.05765,90191.0,90190.0,0.04732767]
[1765274528102,0.05765,90191.0,90190.0,0.08558767]
[1765274529410,0.03027,90191.0,90190.0,0.08558767]
[1765274529802,0.06023,90191.0,90190.0,0.08558767]
[1765274543317,0.0713178,90191.0,90190.0,0.08558767]
[1765274543718,0.06023,90191.0,90190.0,0.08558767]
[1765274554608,0.001,90191.0,90190.0,0.08558767]
[1765274554812,0.0294,90191.0,90190.0,0.08558767]
[1765274555016,0.0294,90191.0,90190.0,0.12548529]
[1765274555321,0.00016624,90200.0,90199.0,0.0493468]
[1765274555619,0.00016624,90200.0,90199.0,0.11939175]
[1765274555819,0.07319,90210.0,90209.0,0.0493455]
[1765274558316,0.07319,90210.0,90209.0,0.0503455]
[1765274558513,0.0284,90213.0,90212.0,0.0302152]
[1765274558820,0.05711624,90219.0,90218.0,0.0493444]
[1765274559913,0.05811624,90219.0,90218.0,0.0493444]
[1765274561522,0.05811624,90219.0,90218.0,0.0503444]
[1765274566016,0.00116624,90219.0,90218.0,0.0503444]
[1765274568320,0.02956624,90219.0,90218.0,0.0503444]
[1765274568525,0.05811624,90219.0,90218.0,0.0503444]
[1765274571423,0.07429816,90240.0,90239.0,0.0493419]
[1765274572626,0.07729816,90240.0,90239.0,0.0493419]
[1765274572822,0.07829816,90240.0,90239.0,0.0493419]
[1765274581937,0.06205816,90240.0,90239.0,0.0493419]
[1765274582331,0.00510816,90240.0,90239.0,0.0493419]
[1765274582537,0.07847816,90240.0,90239.0,0.0493419]
[1765274583037,0.07747816,90240.0,90239.0,0.0503419]
[1765274583229,0.07447816,90240.0,90239.0,0.0503419]
[1765274583832,0.05760624,90249.0,90248.0,0.0493407]
[1765274584622,0.02996624,90249.0,90248.0,0.07924918]
[1765274584833,0.05960624,90249.0,90248.0,0.07924918]
[1765274585236,0.03196624,90249.0,90248.0,0.07924918]
[1765274585434,0.05760624,90249.0,90248.0,0.08024918]
[1765274585638,0.02996624,90249.0,90248.0,0.08224918]
[1765274585834,0.00016624,90249.0,90248.0,0.08224918]
[1765274586035,0.00016624,90249.0,90248.0,0.08124918]
[1765274586225,0.00016624,90249.0,90248.0,0.08024918]
[1765274586431,0.00016624,90249.0,90248.0,0.08124918]
[1765274586834,0.02996624,90249.0,90248.0,0.08124918]
[1765274587034,0.05760624,90249.0,90248.0,0.08124918]
[1765274588838,0.05760624,90249.0,90248.0,0.08324918]
[1765274589443,0.05760624,90249.0,90248.0,0.45324918]
[1765274589627,0.02996624,90249.0,90248.0,0.45324918]
[1765274589827,0.05760624,90249.0,90248.0,0.45324918]
[1765274594341,0.00016624,90249.0,90248.0,0.45324918]
[1765274595145,0.00016624,90249.0,90248.0,0.48303033]
[1765274596041,0.00016624,90249.0,90248.0,0.4233407]
[1765274596443,0.07369,90256.0,90255.0,0.0493399]
[1765274596637,0.0595319,90271.0,90264.0,0.03826]
[1765274596840,0.0757819,90280.0,90264.0,0.41682]
[1765274597038,0.07369,90280.0,90279.0,0.03826]
[1765274597239,0.05744,90271.0,90270.0,0.14380672]
[1765274597444,0.05744,90271.0,90270.0,1.549338]
[1765274597748,0.05744,90271.0,90270.0,2.063378]
[1765274598543,0.07685624,90280.0,90279.0,0.0493369]
[1765274598846,0.07385624,90280.0,90279.0,0.0493369]
[1765274599039,0.07385624,90280.0,90279.0,0.0110769]
[1765274600438,0.07685624,90280.0,90279.0,0.0110769]
[1765274600634,0.01625,90272.0,90271.0,0.0110779]
[1765274600839,0.05744,90262.0,90261.0,0.20864544]
[1765274601243,0.05744,90262.0,90261.0,0.01124544]
[1765274601943,0.05744,90262.0,90261.0,0.01224544]
[1765274603851,0.05744,90262.0,90261.0,0.01324544]
[1765274606051,0.05744,90262.0,90261.0,0.04334176]
[1765274609947,0.05744,90262.0,90261.0,0.03226256]
[1765274610148,0.05744,90262.0,90261.0,0.00216624]
[1765274610541,0.05685,90248.0,90247.0,0.2361608]
[1765274610744,0.05685,90248.0,90247.0,0.03012225]
[1765274610745,0.0679307,90248.0,90247.0,0.03012225]
[1765274610947,0.0679311,90247.0,90246.0,0.0110809]
[1765274611651,0.05685,90247.0,90246.0,0.0110809]
[1765274613357,0.05685,90247.0,90246.0,0.0160809]
[1765274615959,0.05685,90247.0,90246.0,0.04619867]
[1765274616350,0.05685,90247.0,90246.0,0.0160809]
[1765274618257,0.05685,90247.0,90246.0,0.005]
[1765274620958,0.05685,90247.0,90246.0,0.04326]
[1765274621469,0.05685,90247.0,90246.0,0.02413]
[1765274621662,0.05685,90247.0,90246.0,0.005]
[1765274625648,0.0679316,90241.0,90240.0,0.00110816]
[1765274627454,0.0679316,90241.0,90240.0,0.00210816]
[1765274632671,0.0679316,90241.0,90240.0,0.01318986]
[1765274633460,0.0679316,90241.0,90240.0,0.03231986]
[1765274635869,0.0679316,90241.0,90240.0,0.05144986]
[1765274636258,0.0679316,90241.0,90240.0,0.03231986]
[1765274636463,0.0679316,90241.0,90240.0,0.01318986]
[1765274636663,0.0679316,90241.0,90240.0,0.03231986]
[1765274637073,0.0679316,90241.0,90240.0,0.05144986]
[1765274637270,0.0679316,90241.0,90240.0,0.08153986]
[1765274638465,0.05685,90241.0,90240.0,0.08153986]
[1765274642477,0.0298,90244.0,90243.0,0.0493414]
[1765274642682,0.05955,90244.0,90243.0,0.0794314]
[1765274643170,0.07692,90244.0,90243.0,0.0794314]
[1765274643575,0.07992,90244.0,90243.0,0.0794314]
[1765274643983,0.07992,90244.0,90243.0,0.0411714]
[1765274644281,0.07992,90244.0,90243.0,0.0603014]
[1765274644484,0.07992,90244.0,90243.0,0.0411714]
[1765274644680,0.07992,90244.0,90243.0,0.07106694]
[1765274645685,0.07992,90244.0,90243.0,0.09019694]
[1765274645988,0.07992,90244.0,90243.0,0.0603014]
[1765274646578,0.07992,90244.0,90243.0,0.0411714]
[1765274646974,0.07992,90244.0,90243.0,0.03009]
[1765274648588,0.0684114,90243.0,90242.0,0.0110814]
[1765274648784,0.0684114,90243.0,90242.0,0.06048309]
[1765274649174,0.0684114,90243.0,90242.0,0.07961309]
[1765274649579,0.0684114,90243.0,90242.0,0.06048309]
[1765274649782,0.0704114,90243.0,90242.0,0.06048309]
[1765274652582,0.0704114,90243.0,90242.0,0.07961309]
[1765274652789,0.05933,90243.0,90242.0,0.07961309]
[1765274653584,0.05933,90243.0,90242.0,0.06048309]
[1765274655793,0.05933,90243.0,90242.0,0.04135309]
[1765274656292,0.05933,90243.0,90242.0,0.07125198]
[1765274657692,0.05933,90243.0,90242.0,0.09038198]
[1765274659397,0.05933,90243.0,90242.0,0.10951198]
[1765274662297,0.05933,90243.0,90242.0,0.07961309]
[1765274662988,0.0704114,90243.0,90242.0,0.07961309]
[1765274663300,0.05933,90243.0,90242.0,0.07961309]
[1765274667397,0.05933,90243.0,90242.0,0.10952616]
[1765274668701,0.05933,90243.0,90242.0,0.09039616]
[1765274669000,0.05933,90243.0,90242.0,0.10952616]
[1765274671697,0.002,90243.0,90242.0,0.07961309]
[1765274671894,0.03002,90243.0,90242.0,0.07961309]
[1765274672405,0.002,90243.0,90242.0,0.11952637]
[1765274672695,0.05872,90243.0,90242.0,0.07961309]
[1765274673496,0.002,90243.0,90242.0,0.07961309]
[1765274674093,0.03002,90243.0,90242.0,0.07961309]
[1765274674296,0.002,90243.0,90242.0,0.07961309]
[1765274675206,0.002,90243.0,90242.0,0.13948403]
[1765274675407,0.002,90243.0,90242.0,0.07961309]
[1765274679605,0.03002,90243.0,90242.0,0.07961309]
[1765274679806,0.05872,90243.0,90242.0,0.07961309]
[1765274686112,0.05872,90243.0,90242.0,0.10950273]
[1765274686294,0.05872,90243.0,90242.0,0.07961309]
[1765274687311,0.05872,90243.0,90242.0,0.10950273]
[1765274693104,0.05672,90243.0,90242.0,0.10950273]
[1765274693415,0.05872,90243.0,90242.0,0.07961309]
[1765274699318,0.05872,90243.0,90242.0,0.13948403]
[1765274701416,0.05872,90243.0,90242.0,0.07961309]
[1765274701811,0.002,90243.0,90242.0,0.07961309]
[1765274702017,0.002,90243.0,90242.0,0.49961309]
[1765274702412,0.002,90243.0,90242.0,0.4693414]
[1765274702607,0.002,90243.0,90242.0,0.49979012]
[1765274702810,0.06042,90243.0,90242.0,0.15979012]
[1765274703014,0.0782,90243.0,90242.0,0.15979012]
[1765274704107,0.0762,90243.0,90242.0,0.59359012]
[1765274704311,0.0772,90243.0,90242.0,0.07979012]
[1765274704522,0.0772,90243.0,90242.0,0.03044872]
[1765274704724,0.0772,90243.0,90242.0,0.03144872]
[1765274705314,0.0772,90243.0,90242.0,0.05057872]
[1765274705517,0.0772,90243.0,90242.0,0.07135281]
[1765274706917,0.0772,90243.0,90242.0,0.03144872]
[1765274712919,0.0772,90243.0,90242.0,0.05057872]
[1765274713223,0.0772,90243.0,90242.0,0.06970872]
[1765274715818,0.0772,90243.0,90242.0,0.05057872]
[1765274718226,0.0772,90243.0,90242.0,0.06166022]
[1765274719123,0.0772,90243.0,90242.0,0.08079022]
[1765274721226,0.0772,90243.0,90242.0,0.1107155]
[1765274722518,0.0301,90243.0,90242.0,0.1107155]
[1765274722822,0.05924,90243.0,90242.0,0.1107155]
[1765274723226,0.05924,90243.0,90242.0,0.08079022]
[1765274724620,0.0768,90243.0,90242.0,0.08079022]
[1765274724822,0.0768,90243.0,90242.0,0.04253022]
[1765274725025,0.0768,90243.0,90242.0,0.06166022]
[1765274725434,0.0768,90243.0,90242.0,0.08079022]
[1765274725932,0.0768,90243.0,90242.0,0.04253022]
[1765274726433,0.0768,90243.0,90242.0,0.06166022]
[1765274726929,0.0768,90243.0,90242.0,0.08079022]
[1765274733139,0.0768,90243.0,90242.0,0.06166022]
[1765274733348,0.0768,90243.0,90242.0,0.04253022]
[1765274735350,0.0768,90243.0,90242.0,0.07242678]
[1765274736051,0.0768,90243.0,90242.0,0.04253022]
[1765274737051,0.0768,90243.0,90242.0,0.06166022]
[1765274737550,0.0768,90243.0,90242.0,0.08079022]
[1765274740453,0.0768,90243.0,90242.0,0.06166022]
[1765274740648,0.0768,90243.0,90242.0,0.04253022]
[1765274741151,0.0768,90243.0,90242.0,0.06166022]
[1765274743852,0.0727282,90243.0,90242.0,0.06166022]
[1765274746155,0.0727282,90243.0,90242.0,0.04253022]
[1765274747358,0.0727282,90243.0,90242.0,0.08893022]
[1765274747857,0.0727282,90243.0,90242.0,0.06573022]
[1765274748159,0.0727282,90243.0,90242.0,0.08893022]
[1765274750159,0.0727282,90243.0,90242.0,0.12877028]
[1765274754064,0.0727282,90243.0,90242.0,0.09448878]
[1765274754259,0.0727282,90243.0,90242.0,0.03144872]
[1765274754460,0.0727282,90243.0,90237.0,0.00016624]
[1765274754461,0.011082,90238.0,90237.0,0.00016624]
[1765274754666,0.0676234,90226.0,90224.0,0.0709443]
[1765274754871,0.07433,90225.0,90224.0,0.0397237]
[1765274755063,0.07433,90225.0,90224.0,0.0688137]
[1765274755966,0.07433,90225.0,90224.0,0.0718137]
[1765274757260,0.0864136,90225.0,90224.0,0.0758137]
[1765274760872,0.0864136,90225.0,90224.0,0.06473]
[1765274761071,0.0864136,90225.0,90224.0,0.03564]
[1765274761764,0.0864136,90225.0,90224.0,0.007]
[1765274762664,0.0864136,90225.0,90224.0,0.03564]
[1765274763470,0.0864136,90225.0,90224.0,0.06473]
[1765274763471,0.07533,90225.0,90224.0,0.06473]
[1765274766368,0.07533,90225.0,90224.0,0.09468345]
[1765274769469,0.07533,90225.0,90224.0,0.03695345]
[1765274769666,0.07212,90219.0,90218.0,0.00013973]
[1765274769868,0.0832043,90219.0,90218.0,0.00013973]
[1765274772185,0.05749,90191.0,90190.0,0.06096938]
[1765274772367,0.05749,90191.0,90190.0,0.02917878]
[1765274772567,0.05749,90191.0,90190.0,0.00110878]
[1765274773172,0.05761214,90191.0,90190.0,0.00110878]
[1765274773565,0.05861214,90191.0,90190.0,0.00610878]
[1765274774164,0.05861214,90191.0,90190.0,0.06196878]
[1765274774370,0.05861214,90191.0,90190.0,0.07305668]
[1765274775293,0.05861214,90191.0,90190.0,0.06196878]
[1765274775484,0.05861214,90191.0,90190.0,0.03217878]
[1765274775673,0.06161214,90191.0,90190.0,0.03317878]
[1765274775873,0.06061214,90191.0,90190.0,0.03017878]
[1765274776075,0.06261214,90191.0,90190.0,0.03117878]
[1765274776379,0.06261214,90191.0,90190.0,0.05896878]
[1765274778165,0.06261214,90191.0,90190.0,0.00310878]
[1765274782384,0.06261214,90191.0,90190.0,0.05892878]
[1765274784080,0.06261214,90191.0,90190.0,0.03115878]
[1765274784976,0.06261214,90191.0,90190.0,0.00310878]
[1765274785191,0.06261214,90191.0,90190.0,0.00200162]
[1765274785577,0.06261214,90191.0,90165.0,0.00110908]
[1765274785578,0.0684808,90166.0,90165.0,0.02915908]
[1765274785783,0.06860027,90166.0,90165.0,0.00110908]
[1765274786078,0.06860027,90166.0,90165.0,0.05692908]
[1765274786486,0.06860027,90166.0,90165.0,0.02915908]
[1765274786680,0.06960027,90166.0,90165.0,0.03415908]
[1765274786879,0.07060027,90166.0,90165.0,0.01010908]
[1765274793205,0.07060027,90166.0,90165.0,0.03815908]
[1765274793407,0.07060027,90166.0,90165.0,0.01010908]
[1765274796110,0.07060027,90166.0,90165.0,0.03815908]
[1765274796310,0.07060027,90166.0,90165.0,0.06592908]
[1765274797920,0.05950947,90166.0,90165.0,0.06592908]
[1765274803323,0.00211947,90166.0,90165.0,0.08234908]
[1765274803821,0.02963947,90166.0,90165.0,0.08234908]
[1765274804410,0.05950947,90166.0,90165.0,0.08234908]
[1765274804930,0.00211947,90166.0,90165.0,0.08234908]
[1765274805425,0.00211947,90166.0,90165.0,0.12202612]
[1765274805927,0.05950947,90166.0,90165.0,0.12202612]
[1765274806122,0.05950947,90166.0,90165.0,0.08234908]
[1765274808622,0.02963947,90166.0,90165.0,0.08234908]
[1765274808924,0.05950947,90166.0,90165.0,0.06592908]
[1765274809518,0.00211947,90166.0,90165.0,0.08234908]
[1765274811929,0.00016633,90175.0,90174.0,0.0680298]
[1765274812930,0.02727,90185.0,90184.0,0.0676086]
[1765274813129,0.07739148,90195.0,90190.0,0.0676079]
[1765274813130,0.05607,90191.0,90190.0,0.0676079]
[1765274814734,0.05907,90191.0,90190.0,0.0686079]
[1765274814928,0.06007,90191.0,90190.0,0.0696079]
[1765274820634,0.06007,90191.0,90190.0,0.05852]
[1765274821035,0.06007,90191.0,90190.0,0.02963]
[1765274821239,0.06007,90191.0,90190.0,0.002]
[1765274827034,0.06007,90191.0,90190.0,0.02982]
[1765274827534,0.0150878,90191.0,90190.0,0.0855379]
[1765274827735,0.0336,90191.0,90190.0,0.0855379]
[1765274828043,0.06086,90191.0,90190.0,0.0855379]
[1765274828353,0.004,90191.0,90190.0,0.0855379]
[1765274828650,0.0336,90191.0,90190.0,0.0855379]
[1765274828835,0.004,90191.0,90190.0,0.0855379]
[1765274829037,0.0336,90191.0,90190.0,0.0855379]
[1765274830248,0.004,90191.0,90190.0,0.0855379]
[1765274830645,0.06086,90191.0,90190.0,0.0855379]
[1765274830844,0.06086,90191.0,90190.0,0.0684079]
[1765274833349,0.12035075,90191.0,90190.0,0.0684079]
[1765274834049,0.06086,90191.0,90190.0,0.05732]
[1765274834238,0.06086,90191.0,90190.0,0.02982]
[1765274834638,0.06086,90191.0,90190.0,0.0409079]
[1765274834839,0.06086,90191.0,90190.0,0.0684079]
[1765274836248,0.06086,90191.0,90190.0,0.0130879]
[1765274836446,0.06086,90191.0,90190.0,0.0409079]
[1765274836639,0.06086,90191.0,90190.0,0.0684079]
[1765274839650,0.0336,90191.0,90190.0,0.0855379]
[1765274839851,0.004,90191.0,90190.0,0.0855379]
[1765274840155,0.0336,90191.0,90190.0,0.0855379]
[1765274840452,0.06086,90191.0,90190.0,0.0855379]
[1765274842358,0.0719478,90191.0,90190.0,0.002]
[1765274844355,0.0690189,90182.0,90181.0,0.00016633]
[1765274844658,0.1284771,90182.0,90181.0,0.00016633]
[1765274845751,0.1304771,90182.0,90181.0,0.00216633]
[1765274846146,0.0710189,90182.0,90181.0,0.00216633]
[1765274847657,0.0710189,90182.0,90181.0,0.03085633]
[1765274849758,0.0710189,90182.0,90181.0,0.05825633]
[1765274852042,0.0710189,90182.0,90181.0,0.06934533]
[1765274856560,0.002,90182.0,90181.0,0.06934533]
[1765274856960,0.03022,90182.0,90181.0,0.06934533]
[1765274857466,0.002,90182.0,90181.0,0.06934533]
[1765274872167,0.03022,90182.0,90181.0,0.06934533]
[1765274873268,0.002,90182.0,90181.0,0.06934533]
[1765274875665,0.03055,90182.0,90181.0,0.06934533]
[1765274877074,0.002,90182.0,90181.0,0.06934533]
[1765274886084,0.002,90182.0,90181.0,0.09925444]
[1765274886379,0.002,90182.0,90181.0,0.06934533]
[1765274886770,0.00147571,90182.0,90181.0,0.06934533]
[1765274889575,0.03072571,90182.0,90181.0,0.09927535]
[1765274890478,0.00147571,90182.0,90181.0,0.09927535]
[1765274890874,0.03072571,90182.0,90181.0,0.09927535]
[1765274891279,0.03072571,90182.0,90181.0,0.06934533]
[1765274892686,0.00147571,90182.0,90181.0,0.06934533]
[1765274897279,0.03072571,90182.0,90181.0,0.06934533]
[1765274897585,0.05804571,90182.0,90181.0,0.58354533]
[1765274900479,0.05804571,90182.0,90181.0,0.06934533]
[1765274900676,0.06913461,90182.0,90181.0,0.00216633]
[1765274901791,0.12859281,90182.0,90181.0,0.00216633]
[1765274902290,0.06913461,90182.0,90181.0,0.05656633]
[1765274902690,0.06913461,90182.0,90181.0,0.02925633]
[1765274903389,0.06913461,90182.0,90181.0,0.00216633]
[1765274904496,0.06913461,90182.0,90181.0,0.05747633]
[1765274908586,0.06913461,90182.0,90181.0,0.06856533]
[1765274908991,0.06913461,90182.0,90181.0,0.03016633]
[1765274910193,0.06913461,90182.0,90181.0,0.00216633]
[1765274910585,0.06913461,90182.0,90181.0,0.00188053]
[1765274910792,0.06913461,90182.0,90165.0,0.04214934]
[1765274910793,0.05548,90166.0,90165.0,0.05641908]
[1765274911184,0.05548,90166.0,90165.0,0.02910908]
[1765274911389,0.05548,90166.0,90165.0,0.00110908]
[1765274911694,0.05548,90166.0,90165.0,0.02910908]
[1765274911998,0.05648,90166.0,90165.0,0.06441908]
[1765274912198,0.05748,90166.0,90165.0,0.06441908]
[1765274918102,0.05748,90166.0,90165.0,0.07550998]
[1765274918305,0.05748,90166.0,90165.0,0.00910908]
[1765274918502,0.05748,90166.0,90165.0,0.06441908]
[1765274922107,0.05748,90166.0,90165.0,0.00910908]
[1765274922507,0.05748,90166.0,90165.0,0.03710908]
[1765274923517,0.05748,90166.0,90165.0,0.06441908]
[1765274923713,0.05748,90166.0,90165.0,0.07550998]
[1765274929319,0.05748,90166.0,90165.0,0.06441908]
[1765274934621,0.02963,90166.0,90165.0,0.06441908]
[1765274934825,0.002,90166.0,90165.0,0.06441908]
[1765274941322,0.02911,90166.0,90165.0,0.06441908]
[1765274943131,0.002,90166.0,90165.0,0.06441908]
[1765274943326,0.03142,90166.0,90165.0,0.06441908]
[1765274943934,0.06091,90166.0,90165.0,0.06441908]
[1765274948829,0.03142,90166.0,90165.0,0.06441908]
[1765274949339,0.06091,90166.0,90165.0,0.06441908]
[1765274955839,0.06091,90166.0,90165.0,0.07550998]
[1765274967341,0.12037453,90166.0,90165.0,0.07550998]
[1765274969948,0.06091,90166.0,90165.0,0.00910908]
[1765274976839,0.06091,90166.0,90165.0,0.02019998]
[1765274977751,0.06091,90166.0,90165.0,0.00910908]
[1765274980458,0.05991,90166.0,90165.0,0.00510908]
[1765274980757,0.06091,90166.0,90165.0,0.00810908]
[1765274981351,0.05991,90166.0,90165.0,0.00410908]
[1765274981558,0.06091,90166.0,90165.0,0.00610908]
[1765274982156,0.07533,90144.0,90141.0,0.04102832]
[1765274982452,0.07533,90141.0,90140.0,0.05739939]
[1765274982658,0.0687739,90141.0,90140.0,0.05739939]
[1765274982858,0.0687739,90141.0,90140.0,0.03003939]
[1765274983049,0.0687739,90141.0,90140.0,0.05739939]
[1765274983358,0.05368,90141.0,90140.0,0.00110939]
[1765274983851,0.1406284,90141.0,90140.0,0.00110939]
[1765274984058,0.1416284,90141.0,90140.0,0.00410939]
[1765274984260,0.05468,90141.0,90140.0,0.06039939]
[1765274984460,0.05568,90141.0,90140.0,0.06339939]
[1765274985158,0.05568,90141.0,90140.0,0.06139939]
[1765274985545,0.05468,90141.0,90140.0,0.06223939]
[1765274985747,0.05568,90141.0,90140.0,0.06223939]
[1765274987865,0.05568,90141.0,90140.0,0.05839939]
[1765274990057,0.05568,90141.0,90140.0,0.03103939]
[1765274990563,0.05568,90141.0,90140.0,0.00210939]
[1765274991156,0.05568,90141.0,90140.0,0.03103939]
[1765274991658,0.05568,90141.0,90140.0,0.05839939]
[1765274993055,0.05568,90141.0,90140.0,0.03103939]
[1765274993360,0.05568,90141.0,90140.0,0.00210939]
[1765274993757,0.05526,90138.0,90137.0,8.553e-05]
[1765274995466,0.05726,90138.0,90137.0,0.00108553]
[1765274999662,0.05726,90138.0,90137.0,0.02837553]
[1765275000568,0.05726,90138.0,90137.0,0.05696553]
[1765275001357,0.002,90138.0,90137.0,0.05696553]
[1765275001667,0.0663531,90148.0,90147.0,0.0669732]
[1765275001867,0.0110928,90151.0,90150.0,0.0110928]
[1765275002163,0.05542633,90152.0,90151.0,0.05588]
[1765275002968,0.06651893,90152.0,90151.0,0.05588]
[1765275004365,0.07051893,90152.0,90151.0,0.05688]
[1765275004770,0.07251893,90152.0,90151.0,0.05688]
[1765275009073,0.06142633,90152.0,90151.0,0.05688]
[1765275011168,0.12093363,90152.0,90151.0,0.05688]
[1765275011563,0.06567363,90152.0,90151.0,0.05688]
[1765275011875,0.00616633,90152.0,90151.0,0.05688]
[1765275012467,0.03410633,90152.0,90151.0,0.05688]
[1765275012871,0.00616633,90152.0,90151.0,0.05688]
[1765275014372,0.21067177,90180.0,90164.0,0.0824911]
[1765275014373,0.0595073,90166.0,90164.0,0.0824911]
[1765275014572,0.1147373,90166.0,90165.0,0.05508]
[1765275015162,0.05523,90166.0,90165.0,0.05508]
[1765275015573,0.05923,90166.0,90165.0,0.05508]
[1765275016684,0.06523,90166.0,90165.0,0.05508]
[1765275017073,0.05823,90166.0,90165.0,0.05508]
[1765275017273,0.06423,90166.0,90165.0,0.05608]
[1765275018279,0.06223,90166.0,90165.0,0.05608]
[1765275025573,0.007,90166.0,90165.0,0.05608]
[1765275026291,0.00016633,90175.0,90174.0,0.0699398]
[1765275026292,0.02968633,90175.0,90174.0,0.0699398]
[1765275026586,0.00016633,90175.0,90174.0,0.0699398]
[1765275026786,0.02968633,90175.0,90174.0,0.0699398]
[1765275027482,0.03168633,90175.0,90174.0,0.0709398]
[1765275027888,0.03068633,90175.0,90174.0,0.0699398]
[1765275028085,0.03268633,90175.0,90174.0,0.0709398]
[1765275029187,0.03268633,90175.0,90174.0,0.0719398]
[1765275030686,0.00316633,90175.0,90174.0,0.0719398]
[1765275032685,0.00110878,90190.0,90189.0,0.011088]
[1765275032892,0.00110878,90190.0,90189.0,0.069938]
[1765275032893,0.05969878,90190.0,90189.0,0.069938]
[1765275034290,0.06369878,90190.0,90189.0,0.070938]
[1765275034883,0.06669878,90190.0,90189.0,0.071938]
[1765275039696,0.06669878,90190.0,90189.0,0.002]
[1765275040088,0.06669878,90190.0,90189.0,0.03133]
[1765275040288,0.06669878,90190.0,90189.0,0.06085]
[1765275040788,0.06669878,90190.0,90189.0,0.03133]
[1765275041294,0.07778668,90190.0,90189.0,0.03133]
[1765275042188,0.07778668,90190.0,90189.0,0.06085]
[1765275043592,0.06669878,90190.0,90189.0,0.06085]
[1765275048094,0.12620608,90190.0,90189.0,0.06085]
[1765275050294,0.06669878,90190.0,90189.0,0.06085]
[1765275050687,0.12616049,90190.0,90189.0,0.06085]
[1765275051200,0.06669878,90190.0,90189.0,0.06085]
[1765275051606,0.12617406,90190.0,90189.0,0.06085]
[1765275052303,0.06669878,90190.0,90189.0,0.06085]
[1765275056203,0.00810878,90190.0,90189.0,0.06085]
[1765275056406,0.13893983,90202.0,90198.0,0.0681169]
[1765275056606,0.1329744,90202.0,90201.0,0.05703]
[1765275056906,0.07948198,90209.0,90208.0,0.0845557]
[1765275057107,0.07948198,90219.0,90213.0,0.05703]
[1765275057296,0.02839,90221.0,90220.0,0.07347]
[1765275057604,0.01724,90236.0,90220.0,0.07347]
[1765275057605,0.07948198,90224.0,90223.0,0.05703]
[1765275057908,0.05627,90229.0,90228.0,0.05703]
[1765275059205,0.1166746,90229.0,90228.0,0.05703]
[1765275059399,0.05727,90229.0,90228.0,0.05703]
[1765275060006,0.05927,90229.0,90228.0,0.05803]
[1765275060803,0.00110816,90240.0,90239.0,0.05703]
[1765275061199,0.0877946,90249.0,90248.0,0.0681108]
[1765275061400,0.07948198,90258.0,90245.0,0.01644]
[1765275061401,0.02839,90256.0,90255.0,0.05703]
[1765275061602,0.0594046,90258.0,90257.0,0.05703]
[1765275061603,0.02839,90258.0,90257.0,0.05703]
[1765275061806,0.07351,90258.0,90257.0,0.05703]
[1765275062011,0.05627,90258.0,90257.0,0.05703]
[1765275063107,0.05727,90258.0,90257.0,0.05703]
[1765275066019,0.001,90258.0,90257.0,0.05703]
[1765275066320,0.00110786,90265.0,90264.0,0.0810688]
[1765275066617,0.02949786,90265.0,90264.0,0.0810688]
[1765275066807,0.05737786,90265.0,90264.0,0.0810688]
[1765275067515,0.05837786,90265.0,90264.0,0.0810688]
[1765275067910,0.05837786,90265.0,90264.0,0.0681088]
[1765275068417,0.06137786,90265.0,90264.0,0.0691088]
[1765275075119,0.07084786,90265.0,90264.0,0.0691088]
[1765275075322,0.07084786,90265.0,90264.0,0.001]
[1765275077216,0.07084786,90265.0,90253.0,0.0110801]
[1765275077217,0.05755,90254.0,90253.0,0.0700101]
[1765275078213,0.05755,90251.0,90250.0,0.0410304]
[1765275078426,0.05755,90249.0,90235.0,0.0110823]
[1765275078624,0.05755,90249.0,90234.0,0.0110824]
[1765275078825,0.05755,90249.0,90247.0,0.0110808]
[1765275079211,0.05755,90249.0,90248.0,0.03011623]
[1765275079625,0.05755,90249.0,90248.0,0.00016623]
[1765275080725,0.05755,90249.0,90248.0,0.00316623]
[1765275081120,0.05755,90249.0,90248.0,0.00216623]
[1765275081526,0.05755,90249.0,90248.0,0.00016623]
[1765275081722,0.05755,90249.0,90248.0,0.00116623]
[1765275082021,0.05855,90249.0,90248.0,0.00116623]
[1765275083429,0.05955,90249.0,90248.0,0.00116623]
[1765275086825,0.05551,90226.0,90225.0,0.0665936]
[1765275087124,0.05551,90226.0,90225.0,0.0829536]
[1765275088030,0.05651,90226.0,90225.0,0.0859536]
[1765275088421,0.05751,90226.0,90225.0,0.0929536]
[1765275089531,0.05751,90226.0,90225.0,0.0919536]
[1765275089734,0.05651,90226.0,90225.0,0.0849536]
[1765275089931,0.05751,90226.0,90225.0,0.0909536]
[1765275090934,0.002,90226.0,90225.0,0.0909536]
[1765275091433,0.02927,90226.0,90225.0,0.0909536]
[1765275091632,0.002,90226.0,90225.0,0.0909536]
[1765275092428,0.02927,90226.0,90225.0,0.0909536]
[1765275094938,0.002,90226.0,90225.0,0.0909536]
[1765275103627,0.05751,90226.0,90225.0,0.0909536]
[1765275103833,0.05751,90226.0,90225.0,0.06351]
[1765275104137,0.05751,90226.0,90225.0,0.03579]
[1765275104923,0.05751,90226.0,90225.0,0.008]
[1765275105630,0.05751,90226.0,90225.0,0.03579]
[1765275105929,0.05751,90226.0,90225.0,0.06351]
[1765275111828,0.05751,90226.0,90225.0,0.008]
[1765275112633,0.0653746,90217.0,90216.0,0.05740623]
[1765275112943,0.14467852,90217.0,90216.0,0.05740623]
[1765275113840,0.14567852,90217.0,90216.0,0.06040623]
[1765275115034,0.14667852,90217.0,90216.0,0.06640623]
[1765275116147,0.0673746,90217.0,90216.0,0.06640623]
[1765275121741,0.02907,90217.0,90216.0,0.07872623]
[1765275121941,0.002,90217.0,90216.0,0.07872623]
[1765275122746,0.02907,90217.0,90216.0,0.07872623]
[1765275123047,0.05776,90217.0,90216.0,0.07872623]
[1765275123249,0.0688446,90217.0,90216.0,0.07872623]
[1765275125450,0.05776,90217.0,90216.0,0.07872623]
[1765275129949,0.05776,90217.0,90207.0,0.09438779]
[1765275129950,0.01672,90208.0,90207.0,0.09438779]
[1765275130153,0.04634,90208.0,90201.0,0.0110864]
[1765275130353,0.04634,90208.0,90201.0,0.4210864]
[1765275131055,0.04634,90208.0,90207.0,0.0110858]
[1765275131251,0.04645298,90208.0,90207.0,0.0110858]
[1765275131755,0.07714298,90208.0,90207.0,0.0220858]
[1765275132351,0.07714298,90208.0,90207.0,0.0170858]